Cogmind - Beta 11.1 @@@ ROGUE MODE // 2022.05.07 @ 20:21:14 Player: darki Result: Destroyed by VD-ZAH(z) with Zionite Laser-S Performance ------------- Evolutions (1) 500 Regions Visited (5) 1000 Robots Destroyed (9) 45 Value Destroyed (130) 130 Prototype IDs (1) 20 Alien Tech Used (0) 0 Bonus (1600) 1600 TOTAL SCORE: 3295 Bonus ------- Met Imprinter 300 Was Imprinted 300 Destroyed Z-Imprinter 1000 Cogmind --------- Core Integrity 0/400 Matter 275/300 Energy 26/100 System Corruption 0% Temperature Cool (27) Movement Core (50) Location -7/Deep Caves Parts ------- > --- POWER (1) -------- (None) > --- PROPULSION (2) --- (None) > --- UTILITY (4) ------ (None) > --- WEAPON (2) ------- (None) > --- INVENTORY (5) ---- Compact Wheel Compact Wheel Wave Gun Assault Rifle RU-N14's Throwing Claymores (10) Peak State ------------ > --- POWER ------------ Improved Deuterium Engine > --- PROPULSION ------- Compact Wheel Compact Wheel > --- UTILITY ---------- Large Storage Unit Improved Terrain Scanner > --- WEAPON ----------- RU-N14's Throwing Claymores RU-N14's Throwing Claymores > --- INVENTORY -------- Compact Wheel Compact Wheel Compact Wheel Compact Wheel Medium Laser Plasma Rifle Wave Gun Assault Rifle Mining Laser RU-N14's Throwing Claymores RU-N14's Throwing Claymores [Rating: 27] Favorites ----------- Power Light Ion Engine Engine Light Ion Engine Propulsion Compact Wheel Wheel Compact Wheel Utility Improved Terrain Scanner Device Improved Terrain Scanner Storage Large Storage Unit Weapon Medium Laser Energy Gun Medium Laser Special Weapon RU-N14's Throwing Claymores Build | -11 -10 -9 -9 -7 -7 ------- Run | Scr Mat Mat Min Zio Dee Slots Evolved 2 | . . 2 . . . Power . | . . . . . . Propulsion . | . . . . . . Utility 2 | . . 2 . . . Weapon . | . . . . . . Parts Attached 15 | 7 1 . . 2 5 Power 2 | 1 . . . . 1 Engine 2 | 1 . . . . 1 Core . | . . . . . . Reactor . | . . . . . . Propulsion 4 | 2 . . . . 2 Treads . | . . . . . . Leg . | . . . . . . Wheel 4 | 2 . . . . 2 Hover . | . . . . . . Flight . | . . . . . . Utility 3 | 2 1 . . . . Device 1 | 1 . . . . . Storage 2 | 1 1 . . . . Processor . | . . . . . . Hackware . | . . . . . . Protection . | . . . . . . Artifact . | . . . . . . Weapon 6 | 2 . . . 2 2 Energy Gun 3 | 2 . . . 1 . Energy Cannon . | . . . . . . Ballistic Gun . | . . . . . . Ballistic Cannon . | . . . . . . Launcher . | . . . . . . Special Weapon 3 | . . . . 1 2 Impact Weapon . | . . . . . . Slashing Weapon . | . . . . . . Piercing Weapon . | . . . . . . Special Melee Weapon . | . . . . . . Unidentified Prototypes 1 | . . . . 1 . Parts Lost 7 | . . . . . 7 Power 2 | . . . . . 2 Propulsion 3 | . . . . . 3 Utility 1 | . . . . . 1 Weapon 1 | . . . . . 1 Highest Loss Streak 7 | . . . . . 7 To Critical Strikes . | . . . . . . Average Slot Usage (%) 78 | . 100 77 77 77 70 Engine 10 | . 14 11 11 11 8 Wheel 22 | . 28 22 22 22 19 Device 11 | . 14 11 11 11 10 Storage 11 | . 14 11 11 11 11 Energy Gun 20 | . 28 22 22 21 7 Special Weapon 2 | . . . . . 13 Naked Turns 3 | . . . . . 3 Heaviest Build 37 | 13 28 28 28 37 37 Greatest Support 26 | 26 26 26 26 26 26 Greatest Overweight (x) 3 | 3 1 1 1 1 2 Average Overweight (x) . | . . 1 1 1 1 Largest Inventory Capacity 15 | 8 15 15 15 15 15 Average Capacity 13 | 7 8 15 15 15 14 Most Carried 15 | . 8 9 9 15 14 Average Carried 10 | . 5 8 9 14 13 Final Capacity 15 | 8 15 15 15 15 5 Final Carried 14 | . 8 9 9 14 5 Class Distribution -------------------- 100% | Mutant Dominant Class ---------------- Mutant | -10/Materials Mutant | -9/Materials Mutant | -9/Mines Mutant | -7/Zion Mutant | -7/Deep Caves Resources | -11 -10 -9 -9 -7 -7 ----------- Run | Scr Mat Mat Min Zio Dee Matter Collected 297 | 270 . . 17 10 . Remotely . | . . . . . . Salvage Created 269 | 164 . . 12 . 93 Parts 14 | 6 . . 2 . 6 Haulers Intercepted . | . . . . . . Recyclers Shooed . | . . . . . . Parts Field Recycled . | . . . . . . Retrieved Matter . | . . . . . . Parts Self-Destructed . | . . . . . . Prevented . | . . . . . . Kills | -11 -10 -9 -9 -7 -7 ------- Run | Scr Mat Mat Min Zio Dee Combat Hostiles Destroyed 3 | . . . . . 3 AOE 3 | . . . . . 3 Classes Destroyed 4 | 3 . . . . 1 Worker 2 | 2 . . . . . Tunneler 3 | 2 . . 1 . . Recycler 1 | 1 . . . . . Z-Light 2 | . . . . . 2 Best Kill Streak 2 | 2 . . 1 . 2 Combat Bots Only 2 | . . . . . 2 Max Kills in Single Turn 2 | 1 . . 1 . 2 Gunslinging . | . . . . . . Exploded 2 | . . . . . 2 Melee . | . . . . . . Uniques/NPCs Destroyed 1 | . . . . . 1 Z-Imprinter (-7/Deep Caves) Combat | -11 -10 -9 -9 -7 -7 -------- Run | Scr Mat Mat Min Zio Dee Damage Taken 1088 | 40 . 67 2 . 979 Core 458 | 40 . . . . 418 Absorbed by Shields . | . . . . . . Core Remaining (%) 84 | 84 84 . . . . Volleys Fired 28 | 18 . . 1 6 3 Largest 2 | 2 . . 2 2 2 Hottest 131 | 100 . . 100 131 . Shots Fired 54 | 36 . . 2 10 6 Gun 46 | 36 . . 2 8 . Cannon . | . . . . . . Launcher . | . . . . . . Special 8 | . . . . 2 6 Kinetic . | . . . . . . Thermal 46 | 36 . . 2 8 . Explosive 8 | . . . . 2 6 Electromagnetic . | . . . . . . Robot Hit Streak 13 | 6 . . 8 . 13 Robot Miss Streak 3 | 3 . . . . . Penetration Max . | . . . . . . Secondary Targets . | . . . . . . Shots Hit Robots 28 | 21 . . 2 . 5 Core Hits 14 | 6 . . 1 . 7 Critical Kills . | . . . . . . Critical Parts Destroyed . | . . . . . . Critical Strikes 4 | 2 . . . . 2 Burn 2 | 2 . . . . . Sever 2 | . . . . . 2 Melee Attacks . | . . . . . . Impact . | . . . . . . Slashing . | . . . . . . Piercing . | . . . . . . Sneak Attacks . | . . . . . . Combat Hostiles . | . . . . . . Follow-up Attacks . | . . . . . . Damage Inflicted 1114 | 273 . . 30 . 811 Guns 298 | 273 . . 25 . . Cannons . | . . . . . . Explosions 618 | . . . . . 618 Melee . | . . . . . . Ramming 5 | . . . 5 . . Kinetic . | . . . . . . Thermal 298 | 273 . . 25 . . Explosive 618 | . . . . . 618 Electromagnetic . | . . . . . . Impact . | . . . . . . Slashing 193 | . . . . . 193 Piercing . | . . . . . . Highest Corruption 2 | . . . 2 2 . Average Corruption 2 | . . . 2 2 . Corruption Purged . | . . . . . . Corruption Blocked . | . . . . . . Effects 2 | . . . 1 1 . Matter Fused 1 | . . . 1 . . Data Loss (major) 1 | . . . . 1 . Overload Shots . | . . . . . . Overflow Damage 14 | . . . . . 14 Projectiles 14 | . . . . . 14 Explosions . | . . . . . . Melee . | . . . . . . Knockbacks . | . . . . . . Impact . | . . . . . . Kinetic . | . . . . . . Secondary . | . . . . . . Self-Inflicted Damage 2 | . . . 2 . . Shots . | . . . . . . Rammed 1 | . . . 1 . . Targets Rammed 1 | . . . 1 . . Kicked . | . . . . . . Crushed . | . . . . . . Highest Temperature 515 | 515 . . 30 168 15 Average Temperature 193 | 232 . . 16 63 15 Received Heat Transfer 324 | . . 36 . . 288 Effects 7 | 7 . . . . . Shutdowns 1 | 1 . . . . . Energy Bleed 3 | 3 . . . . . Interference 2 | 2 . . . . . Damage (core) 1 | 1 . . . . . Siege Activations . | . . . . . . Robots Corrupted . | . . . . . . Combat Hostiles . | . . . . . . Parts Fried . | . . . . . . Impact Corruptions . | . . . . . . Robots Melted . | . . . . . . Combat Hostiles . | . . . . . . Parts Melted 4 | 3 . . 1 . . Heat Transferred 1036 | 962 . . 74 . . Parts Sabotaged . | . . . . . . Parts Stolen . | . . . . . . Parts Stripped . | . . . . . . Power Chain Reactions . | . . . . . . Missiles Intercepted . | . . . . . . Alert | -11 -10 -9 -9 -7 -7 ------- Run | Scr Mat Mat Min Zio Dee Peak Influence 25 | 25 21 8 8 . . Initial 16 | . 16 8 3 . . Average 11 | 9 20 8 7 . . Maximum Alert Level . | . . . . . . Low Security (%) 100 | 100 100 100 100 . . Level 1 . | . . . . . . Level 2 . | . . . . . . Level 3 . | . . . . . . Level 4 . | . . . . . . Level 5 . | . . . . . . High Security . | . . . . . . Max Security . | . . . . . . Squads Dispatched . | . . . . . . Investigation . | . . . . . . Extermination . | . . . . . . Reinforcement . | . . . . . . Assault . | . . . . . . Garrison . | . . . . . . Intercept . | . . . . . . Searches Triggered . | . . . . . . Construction Impeded . | . . . . . . Haulers Reinforced . | . . . . . . Active Scanning Responses . | . . . . . . Cargo Convoy Interrupts . | . . . . . . Stealth | -11 -10 -9 -9 -7 -7 --------- Run | Scr Mat Mat Min Zio Dee Distress Signals . | . . . . . . Communications Jammed . | . . . . . . Distress Signals . | . . . . . . Times Spotted 11 | . 1 2 . . 8 Peak Tracking Total 6 | . 1 2 . . 6 Tactical Retreats . | . . . . . . Traps | -11 -10 -9 -9 -7 -7 ------- Run | Scr Mat Mat Min Zio Dee Traps Triggered . | . . . . . . Indirectly . | . . . . . . Trap Hack Attempts . | . . . . . . Triggered . | . . . . . . Disarmed . | . . . . . . Reprogrammed . | . . . . . . Reused . | . . . . . . Traps Extracted . | . . . . . . Installed . | . . . . . . Triggered . | . . . . . . Machines | -11 -10 -9 -9 -7 -7 ---------- Run | Scr Mat Mat Min Zio Dee Machines Disabled 1 | . . . . 1 . Max in Single Turn 1 | . . . . 1 . Machines Sabotaged . | . . . . . . Garrisons Compromised . | . . . . . . Overloaded Fab Kills . | . . . . . . Hacking | -11 -10 -9 -9 -7 -7 --------- Run | Scr Mat Mat Min Zio Dee Machines Accessed 1 | . 1 . . . . Terminals 1 | . 1 . . . . Fabricators . | . . . . . . Repair Stations . | . . . . . . Recycling Units . | . . . . . . Scanalyzers . | . . . . . . Garrison Access . | . . . . . . Total Hacks 2 | . 2 . . . . Successful 2 | . 2 . . . . Failed . | . . . . . . Catastrophic . | . . . . . . Database Lockouts . | . . . . . . Manual 1 | . 1 . . . . Terminals 2 | . 2 . . . . Fabricators . | . . . . . . Repair Stations . | . . . . . . Recycling Units . | . . . . . . Scanalyzers . | . . . . . . Garrison Access . | . . . . . . Terminal Hacks 1 | . 1 . . . . Record 1 | . 1 . . . . Fabricator Hacks . | . . . . . . Repair Station Hacks . | . . . . . . Recycling Unit Hacks . | . . . . . . Scanalyzer . | . . . . . . Garrison Access Hacks . | . . . . . . Unauthorized Hacks 1 | . 1 . . . . Terminals 1 | . 1 . . . . Botnet 1 | . 1 . . . . Fabricators . | . . . . . . Repair Stations . | . . . . . . Recycling Units . | . . . . . . Scanalyzers . | . . . . . . Garrison Access . | . . . . . . Data Cores Recovered . | . . . . . . Used . | . . . . . . Hacking Detections 1 | . 1 . . . . Full Trace Events . | . . . . . . Feedback Events . | . . . . . . Feedback Blocked . | . . . . . . Robot Schematics Acquired 4 | . . . . 4 . Robots Built . | . . . . . . Authchips . | . . . . . . Time . | . . . . . . Total Robot Build Rating . | . . . . . . Part Schematics Acquired 14 | . . . . 14 . Parts Built . | . . . . . . Authchips . | . . . . . . Time . | . . . . . . Total Part Build Rating . | . . . . . . Parts Repaired . | . . . . . . Time . | . . . . . . Parts Recycled . | . . . . . . Recycled Matter . | . . . . . . Retrieved Matter . | . . . . . . Retrieved Components . | . . . . . . Parts Scanalyzed . | . . . . . . Part Schematics Acquired . | . . . . . . Parts Damaged . | . . . . . . Bothacking | -11 -10 -9 -9 -7 -7 ------------ Run | Scr Mat Mat Min Zio Dee Used RIF Installer . | . . . . . . Robots Hacked . | . . . . . . Non-combat . | . . . . . . Combat . | . . . . . . Robot Hacks Applied . | . . . . . . Relay Couplers Released . | . . . . . . Fabnet Peak Effective % . | . . . . . . Robots Rewired . | . . . . . . Allies Hacked . | . . . . . . Hacks Repelled . | . . . . . . Allies | -11 -10 -9 -9 -7 -7 -------- Run | Scr Mat Mat Min Zio Dee Total Allies 4 | . . . . 4 . Largest Group 4 | . . . . 4 4 Highest-Rated Group 150 | . . . . 150 150 Highest-Rated Ally 40 | . . . . 40 40 Total Orders . | . . . . . . Ally Attacks . | . . . . . . Total Damage . | . . . . . . Kills . | . . . . . . Allies Corrupted . | . . . . . . Allies Melted . | . . . . . . Intel | -11 -10 -9 -9 -7 -7 ------- Run | Scr Mat Mat Min Zio Dee Robot Analysis Total . | . . . . . . Derelict Logs Recovered . | . . . . . . Drone Launches . | . . . . . . Drone Recoveries . | . . . . . . Exploration | -11 -10 -9 -9 -7 -7 ------------- Run | Scr Mat Mat Min Zio Dee Turns Passed 1464 | 179 114 127 86 797 161 Spaces Moved 1226 | 64 115 120 78 722 127 Core 31 | 23 . . . . 8 Treads . | . . . . . . Legs . | . . . . . . Wheels 1195 | 41 115 120 78 722 119 Hover . | . . . . . . Flight . | . . . . . . Fastest Speed 50 | 50 90 105 105 105 50 Average Speed 103 | 100 91 105 105 105 103 Slowest Speed 200 | 200 105 105 105 105 130 Overloaded Moves . | . . . . . . Propulsion Burnouts . | . . . . . . Robots Hopped . | . . . . . . Cave-ins Triggered . | . . . . . . Exploration Rate (%) 26 | 3 20 19 22 66 29 Regions Visited 5 Branch Regions 3 Pre-discovered Areas 1 | . . . . 1 . Known Exits Taken . | . . . . . . Unknown Exits Taken 5 | 1 1 1 1 1 . Scrap Searched 5 | . . . 1 4 . Spaces Dug . | . . . . . . Terrain Destroyed 32 | . . . . 4 28 Melee . | . . . . . . Projectile . | . . . . . . AOE 32 | . . . . 4 28 Terrain Rammed . | . . . . . . Walls Destroyed . | . . . . . . Machines Disabled . | . . . . . . Actions | -11 -10 -9 -9 -7 -7 --------- Run | Scr Mat Mat Min Zio Dee Total 1366 | 139 124 121 80 751 151 Wait 81 | 51 . 1 1 13 15 Move 1221 | 63 114 119 77 721 127 Hop . | . . . . . . Pick Up 16 | . 8 1 . 7 . Fast Attach 7 | 7 . . . . . Attach 6 | . . . . 1 5 Detach 1 | . . . . . 1 Swap 2 | . 1 . . 1 . Drop 3 | . 1 . . 2 . Fire 28 | 18 . . 1 6 3 Melee . | . . . . . . Ram 1 | . . . 1 . . Kick . | . . . . . . Crush . | . . . . . . Escape Stasis . | . . . . . . Rewire . | . . . . . . Trap . | . . . . . . Miscellaneous . | . . . . . . Route ------- -11/Scrapyard -10/Materials -9/Materials -9/Mines (discovered 2 exits: [*Mat] / *Zio) -7/Zion -7/Deep Caves History --------- Turn | Location | Event 27 | -11/Scrapyard | Discovered new exit (range 15) 180 | -11/Scrapyard | Entered Materials 270 | -10/Materials | Discovered new exit (range 3) 294 | -10/Materials | Entered another Materials area 294 | -9/Materials | Evolved 2 slots: Utility x2 303 | -9/Materials | Build established: Mutant 412 | -9/Materials | Discovered new exit (range 7) 421 | -9/Materials | Entered Mines 483 | -9/Mines | Discovered new exit (range 14) 499 | -9/Mines | A Derelict revealed a hidden shortcut to a safe place 507 | -9/Mines | Entered Zion 535 | -7/Zion | Found Prototype Special Weapon 537 | -7/Zion | Found Prototype Special Weapon 539 | -7/Zion | Found Prototype Special Weapon 541 | -7/Zion | Found Prototype Special Weapon 571 | -7/Zion | System corruption cleaned by Quarantine Array 613 | -7/Zion | Learned location of Warlord (-5) 962 | -7/Zion | Acquired unknown access codes intercepted by a Zionite 1090 | -7/Zion | Imprinted 1092 | -7/Zion | Declared Zion's savior 1232 | -7/Zion | Identified RU-N14's Throwing Claymores (x4) 1287 | -7/Zion | Discovered new exit (range 5) 1288 | -7/Zion | Saw the warning signs outside the Deep Caves entrance 1304 | -7/Zion | Entered Deep Caves 1304 | -7/Deep Caves | Accompanied by 4 allies 1415 | -7/Deep Caves | Attacked by Z-Imprinter 1431 | -7/Deep Caves | Destroyed Z-Imprinter 1455 | -7/Deep Caves | Z-Facility disabled 1458 | -7/Deep Caves | Core integrity fell below 50% 1462 | -7/Deep Caves | Released all parts (4) 1464 | -7/Deep Caves | Core integrity fell below 20% 1465 | -7/Deep Caves | Destroyed by VD-ZAH(z) with Zionite Laser-S Last Messages --------------- 01415_ Lgt. Ion Engine destroyed. Z-Imprinter: GET AWAY FROM HERE! I've worked too hard for our future just to have you ruin everything! 01418_ Wheel destroyed. 01419_ Destroyed Prototype Protection. 01424_ Com. Wheel destroyed. 01431_ Imp. Deuterium Engine destroyed. 01431_ Z-Imprinter Prototype Reactor severed. 01431_ Z-Imprinter: "You cannot stop us! Another will take my place! Derelicts will one day ru..." 01431_ Z-Imprinter destroyed. 01444_ RU-N14's Throwing Claymores destroyed. 01453_ Imp. Terrain Scanner destroyed. 01455_ Z-Facility disabled. 01459_ BR-MUA(z) Prototype Protection severed. 01459_ Destroyed Prototype Hover Unit. 01459_ BR-MUA(z) destroyed. 01462_ Released RU-N14's Throwing Claymores. 01462_ Released Lrg. Storage Unit. 01462_ Released Com. Wheel. Map ----- +----------------------------------------------------+ | | | | | | | | | | | | | | | | | | | ???????????????????????????#????????????????????#? | | ??????????????????????????????###############????? | | ?????????????? ???????# ???#### ##???? | | ????????????? #?????# ??## #???? | | ????????????? ###??# ?## ##### | | ???????????? z # ### ## ## | | ???????????? z ;# | | ???????????? z % | | ??????????? z =[= | | ??????????? !|| | | ?????????? =|[ | | ?????????? """" """""" | | ?????????? """""""""""""" | | ?????????? """"""""""""" | | ?????????? """""""""""""" | | ?????????? """""""""" | | ?????????? @ """""""""""""" | | ?????????? """""""""""""" | | ?????????? """""?????"""" | | ??????????? """""??????""" | | ??????????? """"??????? " | | ???????????? """???"?" | | ???????????? ""?????? | | ???????????? "???????? | | ????????????? ""??????? | | ????????????? "????????"" | | ?????????????? "?????????""" | | ?????????????? "?????????? | | ???????????????? "??????????" | | ?????????????????? "??????????"" | | ????????????????????? "???????????"" | | ??????????????????????? ?????????????? | | ???????????????????????????????????????????? | | ??????????????????????????????????????????????? | | ????????????????????????????????????????????????? | | ?????????????????????????????????????????????????? | | ?????????????????????????????????????????????????? | | ?????????????????????????????????????????????????? | | ?????????????????????????????????????????????????? | | ?????????????????????????????????????????????????? | | ?????????????????????????????????????????????????? | +----------------------------------------------------+ Best States ------------- Heat Dissipation 28 Energy Generation 16 Energy Capacity 290 Matter Stores 300 Matter Capacity 300 Sight Range 16 Terrain Scan Range 16 Terrain Scan Density 10 Evasion (%) 42 Item Schematics ----------------- Recoil Nullifier | -7/Zion | Archive Flak Gun | -7/Zion | Archive Focal Shield | -7/Zion | Archive Imp. Medium Armor Plating | -7/Zion | Archive Lyr. Medium Armor Plating | -7/Zion | Archive Weapon Cycler | -7/Zion | Archive Imp. System Shield | -7/Zion | Archive Mak. Laser | -7/Zion | Archive Arc Thrower | -7/Zion | Archive Lrn. Proton Cannon | -7/Zion | Archive Power Amplifier | -7/Zion | Archive Kinecellerator | -7/Zion | Archive Imp. Melee Analysis Suite | -7/Zion | Archive Hvy. Pick | -7/Zion | Archive Robot Schematics ------------------ K-01 Serf | -7/Zion | Archive B-36 Bruiser | -7/Zion | Archive M-28 Smith | -7/Zion | Archive H-77 Assassin | -7/Zion | Archive Fabricated ------------ Nothing Alien Tech Used ----------------- None Achievements -------------- None Challenges ------------ None Game ------ Seed BoreHypercooledRigger Manual? 0 Play Time 00:13:33 Cumulative 56.7 hours Start 2022.05.07 @ 19:59:07 End 2022.05.07 @ 20:21:14 Sessions 1 Manual Loads 0 Difficulty Rogue Special Mode None Game No. 66 Rogue 66 Adventurer 0 Explorer 0 Win Type - Total 0 Types 0/0/0/0/0/0/0/0/0 Lore% 34 Gallery% 42 Achievement% 33 Wizard Run 0 Options --------- ASCII 0 Keyboard 0 Movement Numpad Keybinds 0 Fullscreen 1 Font 18/SmallcapsGlow Map View 76x50 Tactical HUD 1 Map Filters NONE Filters NONE Steam 1 RUN: 8b74f67f-818b-427b-a067-229366c7bf22